lending/lending_fUSD_20250224
["ID","MTS","AMOUNT","RATE_DAILY","PERIOD"]
[354268878,1740378642807,-947.44,0.00016495,2]
[354268879,1740378642816,-500.0,0.00016495,2]
[354268880,1740378642825,-500.0,0.00016495,2]
[354268881,1740378642834,-500.0,0.00016495,2]
[354268882,1740378642843,-500.0,0.00016495,2]
[354268883,1740378642852,-500.0,0.00016495,2]
[354268884,1740378642861,-500.0,0.00016495,2]
[354268885,1740378642870,-242.69715916,0.00016495,2]
[354268886,1740378642879,-500.0,0.00016495,2]
[354268887,1740378642888,-500.0,0.00016495,2]
[354268888,1740378642897,-371.58366321,0.00016495,2]
[354268889,1740378642908,-128.41633679,0.00016495,2]
[354268890,1740378642917,-523.02,0.00016495,2]
[354268891,1740378642926,-500.0,0.00016495,2]
[354268892,1740378642935,-500.0,0.00016495,2]
[354268893,1740378642943,-500.0,0.00016495,2]
[354268894,1740378642955,-500.0,0.00016495,2]
[354268895,1740378642964,-283.74065537,0.00016495,2]
[354268896,1740378642975,-216.25934463,0.00016495,2]
[354268897,1740378642985,-500.0,0.00016495,2]
[354268898,1740378642994,-500.0,0.00016495,2]
[354268899,1740378643003,-500.0,0.00016495,2]
[354268900,1740378643012,-500.0,0.00016495,2]
[354268901,1740378643022,-500.0,0.00016495,2]
[354268902,1740378643031,-500.0,0.00016495,2]
[354268903,1740378643039,-500.0,0.00016495,2]
[354268904,1740378643048,-504.34407986,0.00016495,2]
[354268905,1740378643057,-500.0,0.00016495,2]
[354268906,1740378643066,-500.0,0.00016495,2]
[354268908,1740378643075,-500.0,0.00016495,2]
[354268909,1740378643084,-374.43581413,0.00016495,2]
[354268910,1740378643092,-500.0,0.00016495,2]
[354268911,1740378643101,-503.18356569,0.00016495,2]
[354268912,1740378643111,-762.55,0.00016495,2]
[354268913,1740378643120,-500.0,0.00016495,2]
[354268914,1740378643130,-500.0,0.00016495,2]
[354268915,1740378643139,-500.0,0.00016495,2]
[354268916,1740378643149,-500.0,0.00016495,2]
[354268917,1740378643158,-500.0,0.00016495,2]
[354268918,1740378643166,-500.0,0.00016495,2]
[354268919,1740378643175,-500.0,0.00016495,2]
[354268920,1740378643184,-500.0,0.00016495,2]
[354268921,1740378643193,-500.0,0.00016495,2]
[354268922,1740378643202,-500.0,0.00016495,2]
[354268923,1740378643211,-500.0,0.00016495,2]
[354268924,1740378643220,-500.0,0.00016495,2]
[354268925,1740378643229,-693.65,0.00016495,2]
[354268926,1740378643238,-500.0,0.00016495,2]
[354268928,1740378643247,-500.0,0.00016495,2]
[354268930,1740378643256,-500.0,0.00016495,2]
[354268932,1740378643266,-500.0,0.00016495,2]
[354268933,1740378643275,-576.92,0.00016495,2]
[354268934,1740378643283,-500.0,0.00016495,2]
[354268935,1740378643293,-500.0,0.00016495,2]
[354268936,1740378643302,-500.0,0.00016495,2]
[354268937,1740378643311,-500.0,0.00016495,2]
[354268938,1740378643320,-536.08,0.00016495,2]
[354268939,1740378643329,-500.0,0.00016495,2]
[354268940,1740378643339,-500.0,0.00016495,2]
[354268941,1740378643348,-500.0,0.00016495,2]
[354268942,1740378643356,-500.0,0.00016495,2]
[354268943,1740378643366,-500.0,0.00016495,2]
[354268945,1740378643375,-500.0,0.00016495,2]
[354268947,1740378643384,-500.0,0.00016495,2]
[354268949,1740378643393,-500.0,0.00016495,2]
[354268951,1740378643402,-500.0,0.00016495,2]
[354268953,1740378643411,-500.0,0.00016495,2]
[354268954,1740378643421,-500.0,0.00016495,2]
[354268955,1740378643430,-500.0,0.00016495,2]
[354268956,1740378643439,-500.0,0.00016495,2]
[354268957,1740378643448,-500.0,0.00016495,2]
[354268958,1740378643456,-509.07050351,0.00016495,2]
[354268959,1740378643465,-500.0,0.00016495,2]
[354268960,1740378643474,-500.0,0.00016495,2]
[354268961,1740378643483,-500.0,0.00016495,2]
[354268962,1740378643492,-500.0,0.00016495,2]
[354268963,1740378643501,-500.0,0.00016495,2]
[354268964,1740378643510,-500.0,0.00016495,2]
[354268965,1740378643519,-500.0,0.00016495,2]
[354268966,1740378643527,-500.0,0.00016495,2]
[354268967,1740378643536,-500.0,0.00016495,2]
[354268968,1740378643545,-502.94799798,0.00016495,2]
[354268969,1740378643554,-500.0,0.00016495,2]
[354268970,1740378643563,-500.0,0.00016495,2]
[354268971,1740378643572,-500.0,0.00016495,2]
[354268972,1740378643582,-500.0,0.00016495,2]
[354268973,1740378643591,-500.0,0.00016495,2]
[354268974,1740378643600,-471.3999624,0.00016495,2]
[354268975,1740378643610,-514.06,0.00016495,2]
[354268976,1740378643619,-500.0,0.00016495,2]
[354268977,1740378643627,-504.0628096,0.00016495,2]
[354268978,1740378643636,-500.0,0.00016495,2]
[354268979,1740378643645,-500.0,0.00016495,2]
[354268980,1740378643654,-500.0,0.00016495,2]
[354268981,1740378643664,-500.0,0.00016495,2]
[354268982,1740378643673,-699.04,0.00016495,2]
[354268983,1740378643682,-500.0,0.00016495,2]
[354268984,1740378643690,-500.0,0.00016495,2]
[354268985,1740378643699,-500.0,0.00016495,2]
[354268986,1740378643708,-500.0,0.00016495,2]
[354268987,1740378643717,-548.0,0.00016495,2]
[354268988,1740378643726,-549.08,0.00016495,2]
[354268989,1740378643735,-503.80541652,0.00016495,2]
[354268990,1740378643744,-517.47,0.00016495,2]
[354268991,1740378643753,-597.08,0.00016495,2]
[354268992,1740378643762,-500.0,0.00016495,2]
[354268994,1740378643772,-500.0,0.00016495,2]
[354268996,1740378643781,-500.0,0.00016495,2]
[354268997,1740378643790,-501.91685965,0.00016495,2]
[354268998,1740378643798,-500.0,0.00016495,2]
[354268999,1740378643807,-500.0,0.00016495,2]
[354269000,1740378643817,-524.86,0.00016495,2]
[354269001,1740378643827,-500.0,0.00016495,2]
[354269002,1740378643835,-500.0,0.00016495,2]
[354269003,1740378643844,-502.74328016,0.00016495,2]
[354269004,1740378643853,-502.59075378,0.00016495,2]
[354269005,1740378643862,-695.63,0.00016495,2]
[354269006,1740378643871,-500.0,0.00016495,2]
[354269007,1740378643880,-503.86122252,0.00016495,2]
[354269008,1740378643888,-501.11256496,0.00016495,2]
[354269009,1740378643897,-500.0,0.00016495,2]
[354269010,1740378643907,-732.33,0.00016495,2]
[354269011,1740378643916,-500.0,0.00016495,2]
[354269012,1740378643926,-500.0,0.00016495,2]
[354269013,1740378643935,-500.0,0.00016495,2]
[354269014,1740378643945,-837.84,0.00016495,2]
[354269015,1740378643957,-682.75225042,0.00016495,2]
[354269016,1740378643971,-222.72774958,0.00016495,2]
[354269017,1740378643980,-479.47344286,0.00016495,2]
[354269018,1740378644004,-22.37729112,0.00016495,2]
[354269019,1740378644013,-500.0,0.00016495,2]
[354269020,1740378644023,-37.35488358,0.00016495,2]
[354269021,1740378644039,-462.64511642,0.00016495,2]
[354269022,1740378644049,-502.31024239,0.00016495,2]
[354269023,1740378644058,-503.00220689,0.00016495,2]
[354269024,1740378644068,-56.10181618,0.00016495,2]
[354269025,1740378644089,-402.490374,0.00016495,2]
[354269026,1740378644101,-50.80291285,0.00016495,2]
[354269027,1740378644110,-336.77108715,0.00016495,2]
[354269028,1740378644122,-163.22891285,0.00016495,2]
[354269029,1740378644131,-485.06730959,0.00016495,2]
[354269030,1740378644578,-1008.94,0.00015876,2]
[354269031,1740378644588,-500.0,0.00016492,2]
[354269032,1740378644598,-500.0,0.00016492,2]
[354269033,1740378644607,-15.11269041,0.00016495,2]
[354269034,1740378644617,-500.0,0.00016495,2]
[354269035,1740378644626,-500.0,0.00016495,2]
[354269036,1740378644635,-503.51380672,0.00016495,2]
[354269037,1740378644644,-500.0,0.00016495,2]
[354269038,1740378644653,-503.88698575,0.00016495,2]
[354269039,1740378644663,-500.0,0.00016495,2]
[354269040,1740378644672,-569.98,0.00016495,2]
[354269041,1740378644681,-500.0,0.00016495,2]
[354269042,1740378644690,-500.0,0.00016495,2]
[354269043,1740378644699,-274.42,0.00016495,2]
[354269044,1740378644709,-500.0,0.00016495,2]
[354269045,1740378644718,-500.0,0.00016495,2]
[354269046,1740378644728,-500.0,0.00016495,2]
[354269047,1740378644737,-502.52677882,0.00016495,2]
[354269048,1740378644747,-500.0,0.00016495,2]
[354269049,1740378644756,-294.7234354,0.00016495,2]
[354269050,1740378644767,-205.2765646,0.00016495,2]
[354269051,1740378644777,-510.09738675,0.00016495,2]
[354269052,1740378644786,-500.0,0.00016495,2]
[354269053,1740378644795,-405.853409,0.00016495,2]
[354269054,1740378644807,-364.336591,0.00016495,2]
[354269055,1740378644817,-500.0,0.00016495,2]
[354269056,1740378644826,-500.0,0.00016495,2]
[354269057,1740378644836,-581.97,0.00016495,2]
[354269058,1740378644846,-500.0,0.00016495,2]
[354269059,1740378644855,-500.0,0.00016495,2]
[354269060,1740378644864,-316.68,0.00016495,2]
[354269061,1740378644874,-151.0,0.00016495,2]
[354269062,1740378644883,-164.69803599,0.00016495,2]
[354269063,1740378644893,-597.07,0.00016495,2]
[354269064,1740378644902,-151.0,0.00016495,2]
[354269065,1740378644911,-500.0,0.00016495,2]
[354269066,1740378644921,-500.0,0.00016495,2]
[354269067,1740378644931,-500.0,0.00016495,2]
[354269068,1740378644940,-822.98,0.00016495,2]
[354269069,1740378644953,-500.0,0.00016495,2]
[354269070,1740378644962,-500.0,0.00016495,2]
[354269071,1740378644972,-500.0,0.00016495,2]
[354269072,1740378644982,-500.0,0.00016495,2]
[354269073,1740378644991,-505.50172224,0.00016495,2]
[354269074,1740378645000,-500.0,0.00016495,2]
[354269075,1740378645009,-582.98,0.00016495,2]
[354269076,1740378645018,-500.0,0.00016495,2]
[354269077,1740378645029,-500.0,0.00016495,2]
[354269078,1740378645039,-500.0,0.00016495,2]
[354269079,1740378645048,-562.71,0.00016495,2]
[354269080,1740378645057,-500.0,0.00016495,2]
[354269081,1740378645067,-526.22,0.00016495,2]
[354269082,1740378645077,-500.0,0.00016495,2]
[354269083,1740378645086,-500.0,0.00016495,2]
[354269084,1740378645095,-504.31917109,0.00016495,2]
[354269085,1740378645104,-151.0,0.00016495,2]
[354269086,1740378645114,-500.0,0.00016495,2]
[354269087,1740378645123,-500.0,0.00016495,2]
[354269088,1740378645133,-500.0,0.00016495,2]
[354269089,1740378645142,-500.0,0.00016495,2]
[354269090,1740378645151,-500.0,0.00016495,2]
[354269091,1740378645160,-500.0,0.00016495,2]
[354269092,1740378645170,-1014.63,0.00016495,2]
[354269093,1740378645179,-1000.9,0.00016496,2]
[354269094,1740378645188,-500.97015422,0.00016496,2]
[354269095,1740378645198,-500.0,0.00016496,2]
[354269096,1740378645208,-501.16423149,0.00016496,2]
[354269097,1740378645218,-501.36358728,0.00016496,2]
[354269098,1740378645227,-250.43288638,0.00016496,2]
[354269099,1740378645237,-500.41305863,0.00016496,2]
[354269100,1740378645246,-500.26751058,0.00016496,2]
[354269101,1740378645256,-500.53126522,0.00016496,2]
[354269102,1740378645266,-500.0,0.00016496,2]
[354269103,1740378645276,-500.0,0.00016496,2]
[354269104,1740378645286,-500.97875203,0.00016496,2]
[354269105,1740378645296,-500.68873633,0.00016496,2]
[354269106,1740378645306,-500.0,0.00016496,2]
[354269107,1740378645318,-500.68142727,0.00016496,2]
[354269108,1740378645329,-501.18712824,0.00016496,2]
[354269109,1740378645339,-500.84054626,0.00016496,2]
[354269110,1740378645350,-314.54282028,0.00016496,2]
[354269111,1740378645360,-502.28946778,0.00016496,2]
[354269112,1740378645370,-501.57358879,0.00016496,2]
[354269113,1740378645380,-502.55597823,0.00016496,2]
[354269114,1740378645390,-501.77969681,0.00016496,2]
[354269115,1740378645399,-500.0,0.00016496,2]
[354269116,1740378645410,-500.0,0.00016496,2]
[354269117,1740378645420,-500.73116318,0.00016496,2]
[354269118,1740378645429,-200.0,0.00016496,2]
[354269119,1740378645439,-500.0,0.00016496,2]
[354269120,1740378645450,-500.0,0.00016496,2]
[354269121,1740378645459,-500.0,0.00016496,2]
[354269122,1740378645469,-500.0,0.00016496,2]
[354269123,1740378645479,-586.66,0.00016496,2]
[354269124,1740378645489,-501.77155754,0.00016496,2]
[354269125,1740378645498,-564.42,0.00016496,2]
[354269126,1740378645508,-500.0,0.00016496,2]
[354269127,1740378645518,-500.0,0.00016496,2]
[354269128,1740378645527,-502.46663908,0.00016496,2]
[354269129,1740378645538,-500.0,0.00016496,2]
[354269130,1740378645547,-554.88,0.00016496,2]
[354269131,1740378645557,-500.0,0.00016496,2]
[354269132,1740378645568,-500.0,0.00016496,2]
[354269133,1740378645578,-500.0,0.00016496,2]
[354269134,1740378645587,-500.0,0.00016496,2]
[354269135,1740378645597,-500.0,0.00016496,2]
[354269136,1740378645606,-500.0,0.00016496,2]
[354269137,1740378645616,-500.0,0.00016496,2]
[354269138,1740378645626,-500.0,0.00016496,2]
[354269139,1740378645635,-500.0,0.00016496,2]
[354269140,1740378645645,-500.0,0.00016496,2]
[354269141,1740378645655,-500.0,0.00016496,2]
[354269142,1740378645666,-500.0,0.00016496,2]
[354269143,1740378645676,-500.0,0.00016496,2]
[354269144,1740378645685,-500.0,0.00016496,2]
[354269145,1740378645695,-152.344725,0.00016496,2]
[354269146,1740378645705,-151.0,0.00016496,2]
[354269147,1740378645714,-271.134749,0.00016496,2]
[354269148,1740378645724,-151.0,0.00016496,2]
[354269149,1740378645733,-500.0,0.00016496,2]
[354269150,1740378645743,-151.0,0.00016496,2]
[354269151,1740378645752,-151.0,0.00016496,2]
[354269152,1740378645762,-1546.0,0.00016497,2]
[354269153,1740378645772,-38942.76083241,0.00016497,2]
[354269154,1740378645801,-494.39,0.00016394,2]
[354269155,1740378645819,-18315.70034756,0.00016394,2]
[354269156,1740378645831,-4450.91684167,0.00016394,2]
[354269157,1740378645840,-41388.2011785,0.00016497,2]
[354269159,1740378646635,-500.0,0.00016492,2]
[354269160,1740378646644,-149.04454786,0.00016497,2]
[354269161,1740378646655,-895.21379971,0.00016497,2]
[354269164,1740379034319,268.59,8.767e-05,2]
[354269165,1740379168165,1000.0,0.0002,120]
[354269174,1740379831477,-1554.93764029,0.00010941,2]
[354269175,1740379831486,-154.006507,0.00010958,2]
[354269176,1740379831495,-151.457564,0.00010958,2]
[354269177,1740379831504,-19559.46849599,0.00010967,2]
[354269178,1740379831513,-154.006507,0.00011041,2]
[354269180,1740379831522,-151.457564,0.00011041,2]
[354269181,1740379831532,-154.006507,0.00011123,2]
[354269182,1740379831541,-151.457564,0.00011123,2]
[354269183,1740379831550,-154.006507,0.00011205,2]
[354269184,1740379831559,-151.457564,0.00011205,2]
[354269185,1740379831568,-154.006507,0.00011287,2]
[354269186,1740379831577,-151.457564,0.00011287,2]
[354269187,1740379831586,-154.006507,0.00011369,2]
[354269188,1740379831595,-151.457564,0.00011369,2]
[354269189,1740379831604,-150.0,0.00012419,2]
[354269190,1740379831613,-33497.85977503,0.0001242,2]
[354269191,1740379831624,-1454.17,0.00012746,2]
[354269192,1740379831633,-550.0,0.00013,2]
[354269193,1740379831643,-818.63,0.00014514,2]
[354269194,1740379831653,-485.02,0.00014678,2]
[354269195,1740379831662,-1441.42358669,0.00014722,2]
[354269196,1740379831674,-3344.6017,0.00014722,2]
[354269197,1740379831685,-4489.86634286,0.00014722,2]
[354269198,1740379831695,-152.0,0.00014895,3]
[354269199,1740379831704,-180.84,0.00014916,2]
[354269200,1740379831713,-18593.74051595,0.00014964,2]
[354269201,1740379831725,-260.31111184,0.00014964,2]
[354269202,1740379831735,-626.0,0.00014964,2]
[354269203,1740379831764,-4419.94837221,0.00014964,2]
[354269204,1740379831773,-197.61,0.00014985,2]
[354269205,1740379831782,-600.0,0.00015,2]
[354269206,1740379831791,-1454.17,0.0001501,2]
[354269207,1740379831800,-973.94,0.00015021,2]
[354269208,1740379831809,-27465.79176381,0.00015055,2]
[354269209,1740379831820,-3719.4796415,0.00015055,2]
[354269210,1740379831831,-13502.04530422,0.00015055,2]
[354269211,1740379831840,-179.81,0.00015062,2]
[354269212,1740379831849,-150.0,0.00015066,2]
[354269213,1740379831859,-150.0,0.00015066,2]
[354269214,1740379831867,-150.0,0.00015066,2]
[354269215,1740379831878,-150.0,0.00015066,2]
[354269216,1740379831887,-2000.0,0.00015069,2]
[354269217,1740379831896,-250.0,0.000151,2]
[354269218,1740379831906,-200.0,0.00015105,2]
[354269219,1740379831916,-1500.0,0.00015124,2]
[354269220,1740379831925,-500.0,0.00015126,2]
[354269221,1740379831934,-152.0,0.00015128,4]
[354269222,1740379831944,-486.95,0.00015135,2]
[354269223,1740379831955,-174.06,0.00015233,2]
[354269224,1740379831964,-150.0,0.00015233,2]
[354269225,1740379831974,-1312.02848427,0.00015302,2]
[354269227,1740379831983,-150.0,0.00015305,2]
[354269228,1740379831992,-150.0,0.00015305,2]
[354269230,1740379832001,-152.0,0.00015361,5]
[354269232,1740379832011,-150.0,0.00015401,2]
[354269234,1740379832020,-463.85,0.00015473,2]
[354269235,1740379832029,-268.59,0.00015516,2]
[354269236,1740379832038,-172.26,0.00015524,2]
[354269237,1740379832047,-2000.0,0.00015526,2]
[354269238,1740379832055,-994.73,0.00015526,2]
[354269239,1740379832064,-1000.0,0.00015528,2]
[354269240,1740379832073,-150.0,0.00015544,2]
[354269241,1740379832082,-150.0,0.00015544,2]
[354269242,1740379832091,-150.0,0.00015568,2]
[354269243,1740379832100,-152.0,0.00015594,6]
[354269244,1740379832109,-150.0,0.00015624,2]
[354269245,1740379832118,-150.0,0.00015735,2]
[354269246,1740379832129,-150.0,0.00015783,2]
[354269247,1740379832138,-150.0,0.00015783,2]
[354269248,1740379832148,-152.0,0.00015827,7]
[354269249,1740379832157,-150.0,0.00015903,2]
[354269250,1740379832166,-2741.0,0.00016,5]
[354269251,1740379832175,-5344.41476421,0.00016,2]
[354269252,1740379832184,-150.0,0.00016022,2]
[354269253,1740379832194,-150.0,0.00016022,2]
[354269254,1740379832203,-150.42,0.00016026,2]
[354269255,1740379832212,-987.57,0.00016055,2]
[354269256,1740379832221,-300.0,0.00016055,2]
[354269257,1740379832231,-278.13,0.00016055,2]
[354269258,1740379832240,-150.0,0.00016055,2]
[354269259,1740379832250,-878.68,0.00016055,2]
[354269260,1740379832259,-987.57,0.00016055,2]
[354269261,1740379832268,-987.57,0.00016055,2]
[354269262,1740379832277,-987.57,0.00016055,2]
[354269263,1740379832286,-985.83,0.00016055,2]
[354269264,1740379832296,-152.0,0.0001606,8]
[354269265,1740379832305,-150.0,0.0001607,2]
[354269266,1740379832314,-848.222661,0.00016167,2]
[354269267,1740379832323,-150.0,0.00016182,2]
[354269268,1740379832332,-151.73,0.00016189,2]
[354269269,1740379832341,-150.0,0.00016238,2]
[354269270,1740379832351,-1015.6,0.00016244,2]
[354269271,1740379832362,-150.0,0.00016261,2]
[354269272,1740379832372,-150.0,0.00016261,2]
[354269273,1740379832381,-671.11,0.00016267,7]
[354269274,1740379832390,-671.11,0.00016267,7]
[354269275,1740379832400,-671.11,0.00016267,7]
[354269276,1740379832409,-671.11,0.00016267,7]
[354269277,1740379832418,-152.0,0.00016293,9]
[354269278,1740379832427,-5756.2773,0.00016338,2]
[354269279,1740379832438,-993.34,0.00016344,2]
[354269280,1740379832448,-3800.60541125,0.00016392,2]
[354269281,1740379832457,-316.88894756,0.00016393,2]
[354269282,1740379832671,-1912.10393511,0.00016397,2]
[354269283,1740379832681,-1000.0,0.000164,2]
[354269284,1740379832691,-1000.0,0.000164,2]
[354269285,1740379832699,-475.0,0.000164,3]
[354269286,1740379832708,-1000.0,0.000164,3]
[354269287,1740379832718,-1166.0,0.000164,2]
[354269288,1740379832727,-800.0,0.000164,5]
[354269289,1740379832736,-150.0,0.00016405,2]
[354269290,1740379832745,-436.13271794,0.00016416,2]
[354269291,1740379832757,-1563.86728206,0.00016416,2]
[354269292,1740379832766,-500.0,0.00016416,2]
[354269293,1740379832775,-500.0,0.00016438,2]
[354269294,1740379832783,-500.0,0.00016438,2]
[354269295,1740379832792,-500.0,0.00016438,2]
[354269296,1740379832801,-396.97,0.00016438,2]
[354269297,1740379832810,-500.0,0.00016438,2]
[354269298,1740379832819,-500.0,0.00016438,2]
[354269299,1740379832828,-581.58,0.00016438,2]
[354269300,1740379832837,-500.0,0.00016438,2]
[354269301,1740379832846,-500.0,0.00016438,2]
[354269302,1740379832855,-500.0,0.00016438,2]
[354269303,1740379832864,-500.0,0.00016438,2]
[354269304,1740379832874,-500.0,0.00016438,2]
[354269305,1740379832883,-500.0,0.00016438,2]
[354269306,1740379832892,-181.83704249,0.00016439,2]
[354269307,1740379832901,-367.95,0.00016482,2]
[354269308,1740379832910,-2022.48,0.00016491,2]
[354269309,1740379832919,-994.69,0.00016491,2]
[354269310,1740379832929,-1029.21,0.00016491,2]
[354269311,1740379832938,-1212.9,0.00016491,2]
[354269312,1740379832947,-832.43,0.00016491,2]
[354269313,1740379832956,-1090.42,0.00016491,2]
[354269314,1740379832966,-1660.2,0.00016491,2]
[354269315,1740379832975,-1347.0,0.00016491,2]
[354269316,1740379832985,-1265.39,0.00016491,2]
[354269317,1740379832994,-648.43,0.00016491,2]
[354269318,1740379833003,-618.54,0.00016491,2]
[354269319,1740379833012,-1354.19,0.00016491,2]
[354269320,1740379833021,-500.0,0.00016491,2]
[354269321,1740379833030,-928.5,0.00016491,2]
[354269322,1740379833040,-1495.49,0.00016491,2]
[354269323,1740379833049,-994.36,0.00016491,2]
[354269324,1740379833058,-866.11934939,0.00016491,2]
[354269325,1740379833070,-264.47065061,0.00016491,2]
[354269326,1740379833080,-209.71456511,0.00016491,2]
[354269327,1740379833091,-690.41543489,0.00016491,2]
[354269328,1740379833100,-1460.31,0.00016491,2]
[354269329,1740379833110,-1924.62,0.00016491,2]
[354269330,1740379833120,-966.31,0.00016491,2]
[354269331,1740379833131,-981.8,0.00016491,2]
[354269332,1740379833141,-1555.28,0.00016491,2]
[354269333,1740379833151,-1222.4,0.00016491,2]
[354269334,1740379833161,-500.0,0.00016491,2]
[354269335,1740379833171,-500.0,0.00016491,2]
[354269336,1740379833180,-500.0,0.00016491,2]
[354269337,1740379833190,-1392.7,0.00016491,2]
[354269338,1740379833199,-1593.15,0.00016491,2]
[354269339,1740379833209,-751.78,0.00016491,2]
[354269340,1740379833219,-1300.76,0.00016491,2]
[354269341,1740379833228,-1361.74,0.00016491,2]
[354269342,1740379833238,-500.0,0.00016492,2]
[354269343,1740379833247,-500.0,0.00016492,2]
[354269344,1740379833257,-500.0,0.00016492,2]
[354269345,1740379833267,-500.0,0.00016492,2]
[354269346,1740379833276,-500.0,0.00016492,2]
[354269347,1740379833286,-500.0,0.00016492,2]
[354269348,1740379833295,-124.43557795,0.00016492,2]
[354269349,1740379833314,-366.18631718,0.00016492,2]
[354269350,1740379833331,-63.44810487,0.00016492,2]
[354269351,1740379833340,-377.21,0.00016492,2]
[354269352,1740379833353,-500.0,0.00016492,2]
[354269353,1740379833363,-500.0,0.00016492,2]
[354269354,1740379833372,-500.0,0.00016492,2]
[354269355,1740379833382,-500.0,0.00016492,2]
[354269356,1740379833393,-505.21,0.00016492,2]
[354269357,1740379833402,-500.0,0.00016492,2]
[354269358,1740379833412,-500.0,0.00016492,2]
[354269359,1740379833421,-500.0,0.00016492,2]
[354269360,1740379833431,-500.0,0.00016492,2]
[354269361,1740379833440,-500.0,0.00016492,2]
[354269362,1740379833449,-500.0,0.00016492,2]
[354269363,1740379833458,-288.89189551,0.00016492,2]
[354269364,1740379833470,-223.59474114,0.00016492,2]
[354269365,1740379833480,-164.99667742,0.00016492,2]
[354269366,1740379833491,-335.00332258,0.00016492,2]
[354269367,1740379833500,-500.0,0.00016492,2]
[354269368,1740379833509,-500.0,0.00016492,2]
[354269369,1740379833519,-500.0,0.00016492,2]
[354269370,1740379833528,-500.0,0.00016492,2]
[354269371,1740379833538,-500.0,0.00016492,2]
[354269372,1740379833547,-500.0,0.00016492,2]
[354269373,1740379833556,-500.0,0.00016492,2]
[354269374,1740379833566,-500.0,0.00016492,2]
[354269375,1740379833575,-500.0,0.00016492,2]
[354269376,1740379833584,-500.0,0.00016492,2]
[354269377,1740379833593,-500.0,0.00016492,2]
[354269378,1740379833603,-500.0,0.00016492,2]
[354269379,1740379833612,-500.0,0.00016492,2]
[354269380,1740379833622,-500.0,0.00016492,2]
[354269381,1740379833631,-718.8,0.00016492,2]
[354269382,1740379833641,-500.0,0.00016492,2]
[354269383,1740379833650,-500.0,0.00016492,2]
[354269384,1740379833660,-500.0,0.00016492,2]
[354269385,1740379833670,-546.23,0.00016492,2]
[354269386,1740379833679,-500.0,0.00016492,2]
[354269387,1740379833689,-500.0,0.00016492,2]
[354269388,1740379833698,-500.0,0.00016492,2]
[354269389,1740379833707,-500.0,0.00016492,2]
[354269390,1740379833716,-500.0,0.00016492,2]
[354269391,1740379833726,-730.78,0.00016492,2]
[354269392,1740379833735,-500.0,0.00016492,2]
[354269393,1740379833745,-500.0,0.00016492,2]
[354269394,1740379833754,-500.0,0.00016492,2]
[354269395,1740379833763,-500.0,0.00016492,2]
[354269396,1740379833773,-500.0,0.00016492,2]
[354269397,1740379833783,-500.0,0.00016492,2]
[354269398,1740379833792,-664.75,0.00016492,2]
[354269399,1740379833801,-500.0,0.00016492,2]
[354269400,1740379833810,-552.88,0.00016492,2]
[354269401,1740379833820,-513.75,0.00016492,2]
[354269402,1740379833830,-500.0,0.00016492,2]
[354269403,1740379833839,-500.0,0.00016492,2]
[354269404,1740379833848,-500.0,0.00016492,2]